bitfinex/quotes_BTCUSD_20250225
["timestamp","ask_amount","ask_price","bid_price","bid_amount"]
[1740453961059,0.00301508,92452.0,92423.0,0.077]
[1740453961259,0.0008486,92454.0,92425.0,0.0452]
[1740453961467,0.00833222,92448.0,92426.0,0.07851426]
[1740453961871,0.0008486,92454.0,92428.0,0.077]
[1740453962003,0.0008486,92454.0,92430.0,0.077]
[1740453962207,0.0008486,92454.0,92432.0,0.077]
[1740453962403,0.0008486,92454.0,92433.0,0.07851406]
[1740453963156,0.0008486,92454.0,92439.0,0.0452]
[1740453963423,0.0008486,92454.0,92441.0,0.077]
[1740453963640,0.0008486,92454.0,92446.0,0.08642529]
[1740453963849,0.0008486,92454.0,92447.0,0.0566739]
[1740453964103,0.0008486,92454.0,92448.0,0.57063287]
[1740453964313,0.0008486,92454.0,92448.0,0.49243287]
[1740453964518,0.0008486,92454.0,92451.0,0.0761]
[1740453964730,0.0016972,92460.0,92452.0,0.12225549]
[1740453964938,0.00182656,92460.0,92453.0,0.0761]
[1740453965158,0.00182656,92460.0,92455.0,0.0761]
[1740453965391,0.00182656,92460.0,92457.0,0.1249]
[1740453965601,0.00182656,92460.0,92458.0,0.07931366]
[1740453965800,0.00182656,92460.0,92459.0,0.59866095]
[1740453967599,0.00182656,92460.0,92459.0,0.66576095]
[1740453968824,0.00182656,92460.0,92459.0,0.67276095]
[1740453969006,0.00182656,92460.0,92459.0,0.66576095]
[1740453969419,0.00182656,92460.0,92459.0,0.67276095]
[1740453970528,0.00182656,92460.0,92459.0,0.65276095]
[1740453971832,0.00182656,92460.0,92459.0,0.64576095]
[1740453971983,0.00182656,92460.0,92459.0,0.65276095]
[1740453973912,0.00182656,92460.0,92459.0,0.62433287]
[1740453974718,0.00182656,92460.0,92459.0,0.63449287]
[1740453978427,0.00182656,92460.0,92459.0,0.62433287]
[1740453978627,0.00182656,92460.0,92459.0,0.63449287]
[1740453978930,0.00182656,92460.0,92459.0,0.62749287]
[1740453979172,0.00182656,92460.0,92459.0,0.69724216]
[1740453979334,0.00182656,92460.0,92459.0,0.69024216]
[1740453979632,0.00182656,92460.0,92459.0,0.69724216]
[1740453980625,0.00182656,92460.0,92459.0,0.68708216]
[1740453980876,0.00182656,92460.0,92459.0,0.69724216]
[1740453981247,0.00182656,92460.0,92459.0,0.57723287]
[1740453981693,0.00182656,92460.0,92459.0,0.49943287]
[1740453981873,0.00182656,92460.0,92459.0,0.49243287]
[1740453982258,0.00182656,92460.0,92459.0,0.49943287]
[1740453982461,0.00182656,92460.0,92459.0,0.49243287]
[1740453982658,0.00182656,92460.0,92459.0,0.55788216]
[1740453983040,0.00182656,92460.0,92459.0,0.56104216]
[1740453983253,0.00182656,92460.0,92459.0,0.56804216]
[1740453984826,0.00182656,92460.0,92459.0,0.50959287]
[1740453984982,0.00182656,92460.0,92459.0,0.50259287]
[1740453985404,0.00182656,92460.0,92459.0,0.50959287]
[1740453985614,0.00034161,92460.0,92459.0,0.50959287]
[1740453989715,0.00034161,92460.0,92459.0,0.50259287]
[1740453989930,0.00034161,92460.0,92459.0,0.56821174]
[1740453990556,0.00034161,92460.0,92459.0,0.50959287]
[1740453990899,0.00034161,92460.0,92459.0,0.49943287]
[1740453991305,0.00034161,92460.0,92459.0,0.49243287]
[1740453991501,0.00034161,92460.0,92459.0,0.49943287]
[1740453991869,0.00034161,92460.0,92459.0,0.49243287]
[1740453992071,0.00034161,92460.0,92459.0,0.55105174]
[1740453992233,0.00034161,92460.0,92459.0,0.55805174]
[1740453992432,0.00034161,92460.0,92459.0,0.55105174]
[1740453992831,0.00034161,92460.0,92459.0,0.06726469]
[1740453993093,0.00034161,92460.0,92459.0,0.0617785]
[1740453993290,0.00034161,92460.0,92459.0,0.00315963]
[1740453993520,0.00034161,92460.0,92459.0,0.00164582]
[1740453993868,0.00034161,92460.0,92459.0,0.00315969]
[1740453994443,0.00034161,92460.0,92459.0,0.01015969]
[1740453994797,0.00034161,92460.0,92459.0,0.00315969]
[1740453994993,0.00034161,92460.0,92459.0,0.01015969]
[1740453995192,0.00034161,92460.0,92459.0,0.06262994]
[1740453995603,0.00034161,92460.0,92459.0,0.06962994]
[1740453995779,0.00034161,92460.0,92459.0,0.06262994]
[1740453996176,0.00034161,92460.0,92459.0,0.06962994]
[1740453997441,0.00034161,92460.0,92459.0,0.06262994]
[1740453997646,0.00034161,92460.0,92459.0,0.06962994]
[1740453997997,0.00034161,92460.0,92459.0,0.14012987]
[1740453998236,0.00034161,92460.0,92459.0,0.18512976]
[1740453998800,0.00034161,92460.0,92459.0,0.68291681]
[1740453998998,0.00034161,92460.0,92459.0,0.67440312]
[1740453999274,0.00034161,92460.0,92459.0,0.70824559]
[1740453999421,0.00034161,92460.0,92459.0,0.68140312]
[1740453999666,0.00034161,92460.0,92459.0,0.71524304]
[1740454000797,0.00034161,92460.0,92459.0,0.68140312]
[1740454003480,0.00034161,92460.0,92459.0,0.69156312]
[1740454004474,0.00034161,92460.0,92459.0,0.62193287]
[1740454005050,0.00034161,92460.0,92459.0,0.49943287]
[1740454005578,0.00034161,92460.0,92459.0,0.49243287]
[1740454005797,0.01126011,92473.0,92459.0,0.49243287]
[1740454006008,0.02947473,92484.0,92459.0,0.49243287]
[1740454006206,0.15,92496.0,92460.0,0.05833887]
[1740454006410,0.15012934,92496.0,92460.0,0.05833887]
[1740454006626,0.00275517,92495.0,92460.0,0.05833887]
[1740454006828,0.03227416,92495.0,92460.0,0.05833887]
[1740454007054,0.03227416,92495.0,92460.0,0.05985267]
[1740454007412,0.03227416,92495.0,92461.0,0.06502413]
[1740454007632,0.03227416,92495.0,92462.0,0.0015138]
[1740454007793,0.03227416,92495.0,92464.0,0.0823]
[1740454007991,0.03227416,92495.0,92466.0,0.0823]
[1740454008198,0.002,92495.0,92468.0,0.0823]
[1740454008395,0.002,92495.0,92469.0,0.00151344]
[1740454008577,0.00012934,92496.0,92469.0,0.00151344]
[1740454009073,0.0028479,92495.0,92470.0,0.0827]
[1740454009260,0.0028479,92495.0,92471.0,0.00151344]
[1740454009476,0.0028479,92495.0,92472.0,0.06452934]
[1740454009674,0.0028479,92495.0,92473.0,0.00151344]
[1740454009884,0.0028479,92495.0,92474.0,0.0827]
[1740454010083,0.0008479,92495.0,92476.0,0.1324]
[1740454010287,0.0008479,92495.0,92478.0,0.0827]
[1740454010481,0.0008479,92495.0,92480.0,0.0827]
[1740454010687,0.0008479,92495.0,92483.0,0.0497]
[1740454010893,0.0008479,92495.0,92485.0,0.0827]
[1740454011139,0.0008479,92495.0,92486.0,0.49394604]
[1740454011318,0.0008479,92495.0,92487.0,0.0636506]
[1740454011529,0.0008479,92495.0,92488.0,0.00151319]
[1740454012065,0.0008479,92495.0,92486.0,0.49243287]
[1740454012270,0.0008479,92495.0,92489.0,0.01016]
[1740454014510,0.0008479,92495.0,92489.0,0.01616]
[1740454014995,0.0008479,92495.0,92489.0,0.012]
[1740454016528,0.00810088,92493.0,92486.0,0.49243287]
[1740454016822,0.00810088,92493.0,92489.0,0.004]
[1740454017051,0.00810088,92493.0,92486.0,0.00164582]
[1740454017262,0.00278613,92492.0,92486.0,0.00164582]
[1740454017979,0.00278613,92492.0,92489.0,0.001]
[1740454020000,0.00278613,92492.0,92486.0,0.00164582]
[1740454020601,0.00278613,92492.0,92471.0,0.01016]
[1740454020803,0.00278613,92492.0,92472.0,0.00871058]
[1740454020945,0.00278613,92492.0,92489.0,1.0]
[1740454021347,0.00810088,92493.0,92489.0,1.0]
[1740454023827,0.01121347,92494.0,92490.0,0.00164582]
[1740454023964,0.01121347,92494.0,92490.0,0.00315924]
[1740454024409,0.01121347,92494.0,92491.0,0.10576057]
[1740454024550,0.01121347,92494.0,92492.0,0.00151342]
[1740454025176,0.01121347,92494.0,92490.0,0.00164582]
[1740454026115,0.01121347,92494.0,92490.0,0.00464582]
[1740454026319,0.01121347,92494.0,92490.0,0.00164582]
[1740454026728,0.01121347,92494.0,92490.0,0.00464582]
[1740454027370,0.15,92529.0,92491.0,0.02]
[1740454027570,0.00276438,92493.0,92492.0,0.10476458]
[1740454027707,0.00807369,92495.0,92492.0,0.10476458]
[1740454028607,0.00807369,92495.0,92491.0,0.02]
[1740454029230,0.00807369,92495.0,92490.0,0.00164582]
[1740454029634,0.00807369,92495.0,92489.0,1.0]
[1740454031127,0.00907369,92495.0,92489.0,1.0]
[1740454032259,0.00807369,92495.0,92489.0,1.0]
[1740454032658,0.00907369,92495.0,92489.0,1.0]
[1740454033985,0.00907369,92495.0,92489.0,1.001695]
[1740454034365,0.00907369,92495.0,92489.0,1.04389291]
[1740454034773,0.00907369,92495.0,92489.0,1.001695]
[1740454035314,0.00807369,92495.0,92489.0,1.001695]
[1740454035499,0.00907369,92495.0,92489.0,1.001695]
[1740454036321,0.00807369,92495.0,92489.0,1.001695]
[1740454036719,0.00907369,92495.0,92489.0,1.001695]
[1740454038539,0.00807369,92495.0,92489.0,1.001695]
[1740454038743,0.00907369,92495.0,92489.0,1.001695]
[1740454041305,0.00907369,92495.0,92490.0,0.1001695]
[1740454041511,0.00907369,92495.0,92489.0,1.001695]
[1740454042207,0.00807369,92495.0,92489.0,1.001695]
[1740454042445,0.00907369,92495.0,92489.0,1.001695]
[1740454042640,0.00807369,92495.0,92489.0,1.001695]
[1740454042963,0.00907369,92495.0,92489.0,1.001695]
[1740454044208,0.00907369,92495.0,92489.0,0.62509716]
[1740454044410,0.00907369,92495.0,92489.0,0.59253386]
[1740454044610,0.00907369,92495.0,92489.0,0.55997056]
[1740454044814,0.00907369,92495.0,92489.0,0.53979056]
[1740454045014,0.00907369,92495.0,92489.0,0.50722799]
[1740454045215,0.00807369,92495.0,92489.0,0.47466542]
[1740454045393,0.00807369,92495.0,92489.0,0.38333285]
[1740454045598,0.01207369,92495.0,92489.0,0.38433285]
[1740454045798,0.00807369,92495.0,92489.0,0.35077028]
[1740454046168,0.01207369,92495.0,92489.0,0.24743771]
[1740454046370,0.01207369,92495.0,92489.0,0.21487514]
[1740454046638,0.00273953,92494.0,92489.0,0.21487514]
[1740454047820,0.01207369,92495.0,92489.0,0.21387514]
[1740454047991,0.00807369,92495.0,92489.0,0.21387514]
[1740454048325,0.006,92494.0,92493.0,0.02]
[1740454048530,0.006,92494.0,92493.0,0.0977]
[1740454048736,0.011,92494.0,92493.0,0.0977]
[1740454049231,0.005,92494.0,92493.0,0.0977]
[1740454049625,0.003,92495.0,92493.0,0.0977]
[1740454050064,0.003,92495.0,92494.0,0.02]
[1740454051200,0.0008475,92497.0,92495.0,0.02]
[1740454052565,0.0008475,92497.0,92495.0,0.021]
[1740454053924,0.0008475,92497.0,92496.0,0.16891348]
[1740454054989,0.0008475,92497.0,92496.0,0.1705593]
[1740454055188,0.0008475,92497.0,92496.0,0.1715593]
[1740454055389,0.0008475,92497.0,92496.0,0.1705593]
[1740454055521,0.0008475,92497.0,92496.0,0.16904582]
[1740454055739,0.0008475,92497.0,92496.0,0.17504582]
[1740454057562,0.0008475,92497.0,92496.0,0.16904582]
[1740454057965,0.0008475,92497.0,92496.0,0.17504582]
[1740454058166,0.0008475,92497.0,92496.0,0.16904582]
[1740454058567,0.0008475,92497.0,92496.0,0.17504582]
[1740454058775,0.0008475,92497.0,92496.0,0.16904582]
[1740454059323,0.0008475,92497.0,92496.0,0.17504582]
[1740454060065,0.0008475,92497.0,92496.0,0.2733238]
[1740454060268,0.15,92547.0,92519.0,0.02]
[1740454060602,0.00043103,92531.0,92520.0,0.1236]
[1740454060951,0.00043103,92531.0,92522.0,0.02]
[1740454061402,0.00043103,92531.0,92520.0,0.1236]
[1740454062051,0.00443103,92531.0,92521.0,0.02]
[1740454063504,0.00443103,92531.0,92520.0,0.1236]
[1740454063718,0.00043103,92531.0,92520.0,0.1236]
[1740454064120,0.00243103,92531.0,92520.0,0.1236]
[1740454064635,0.00443103,92531.0,92520.0,0.1236]
[1740454067551,0.00443103,92531.0,92526.0,0.04]
[1740454067765,0.00443103,92531.0,92527.0,0.02]
[1740454068365,0.00043103,92531.0,92527.0,0.02]
[1740454068834,0.00243103,92531.0,92529.0,0.02]
[1740454069041,0.00243103,92531.0,92530.0,0.02]
[1740454069246,0.00327983,92531.0,92530.0,0.1024]
[1740454069415,0.00327983,92531.0,92530.0,0.1224]
[1740454070044,0.00127983,92531.0,92530.0,0.1224]
[1740454070249,0.00127983,92531.0,92530.0,0.12404582]
[1740454070741,0.00127983,92531.0,92530.0,0.12604582]
[1740454071105,0.00127983,92531.0,92530.0,0.12404582]
[1740454071313,0.00127983,92531.0,92530.0,0.12604582]
[1740454071709,0.00127983,92531.0,92530.0,0.12404582]
[1740454071915,0.00127983,92531.0,92530.0,0.12604582]
[1740454073147,0.00127983,92531.0,92530.0,0.10604582]
[1740454073346,0.00127983,92531.0,92530.0,0.10404582]
[1740454073649,0.00127983,92531.0,92530.0,0.12604582]
[1740454073805,0.00127983,92531.0,92530.0,0.12404582]
[1740454074005,0.00127983,92531.0,92530.0,0.17064582]
[1740454074213,0.00127983,92531.0,92530.0,0.17264582]
[1740454074399,0.00127983,92531.0,92530.0,0.17064582]
[1740454074895,0.00127983,92531.0,92530.0,0.17164582]
[1740454075112,0.00127983,92531.0,92530.0,0.17064582]
[1740454076391,0.00127983,92531.0,92530.0,0.17164582]
[1740454077169,0.00127983,92531.0,92530.0,0.15164582]
[1740454077483,0.00127983,92531.0,92530.0,0.17164582]
[1740454077688,0.00127983,92531.0,92530.0,0.13164582]
[1740454078191,0.00127983,92531.0,92530.0,0.15164582]
[1740454079928,0.00127983,92531.0,92530.0,0.1688104]
[1740454080480,0.00127983,92531.0,92530.0,0.15164582]
[1740454080835,0.00127983,92531.0,92530.0,0.13164582]
[1740454081225,0.00127983,92531.0,92530.0,0.00264582]
[1740454081422,0.00127983,92531.0,92530.0,0.02264582]
[1740454081794,0.00127983,92531.0,92530.0,0.00264582]
[1740454083544,0.00127983,92531.0,92530.0,0.02264582]
[1740454083722,0.00127983,92531.0,92530.0,0.00264582]
[1740454085017,0.00127983,92531.0,92522.0,0.0797]
[1740454085442,0.00127983,92531.0,92528.0,0.02]
[1740454085933,0.00127983,92531.0,92522.0,0.0797]
[1740454086308,0.00127983,92531.0,92528.0,0.02]
[1740454086469,0.00127983,92531.0,92522.0,0.0797]
[1740454086665,0.00127983,92531.0,92528.0,0.02]
[1740454088314,0.00127983,92531.0,92522.0,0.0797]
[1740454088490,0.00127983,92531.0,92528.0,0.02]
[1740454089037,0.00127983,92531.0,92522.0,0.0797]
[1740454089237,0.00127983,92531.0,92515.0,0.0755]
[1740454089534,0.00127983,92531.0,92506.0,0.07714582]
[1740454089989,0.00831363,92523.0,92506.0,0.02164582]
[1740454090197,0.00831363,92523.0,92506.0,0.00164582]
[1740454090412,0.00831363,92523.0,92500.0,0.0755]
[1740454091211,0.01131363,92523.0,92500.0,0.0755]
[1740454091407,0.00831363,92523.0,92500.0,0.0755]
[1740454091609,0.00831363,92523.0,92478.0,0.00164582]
[1740454091610,0.0009,92522.0,92485.0,0.0755]
[1740454092040,0.00352602,92521.0,92485.0,0.0755]
[1740454092829,0.00352602,92521.0,92482.0,0.0655]
[1740454093374,0.00283723,92521.0,92482.0,0.0655]
[1740454094026,0.00283723,92521.0,92497.0,0.0026974]
[1740454094200,0.00283723,92521.0,92497.0,0.0016974]
[1740454094607,0.00983723,92521.0,92497.0,0.0026974]
[1740454094810,0.00983723,92521.0,92497.0,0.0016974]
[1740454095080,0.00983723,92521.0,92497.0,0.0791974]
[1740454095191,0.01683723,92521.0,92497.0,0.0791974]
[1740454095395,0.01683723,92521.0,92503.0,0.02]
[1740454095615,0.00127983,92531.0,92505.0,0.02]
[1740454095815,0.00127983,92531.0,92507.0,0.02]
[1740454096095,0.00127983,92531.0,92516.0,0.0775]
[1740454096096,0.0079591,92517.0,92516.0,0.0775]
[1740454096498,0.00127983,92531.0,92523.0,0.02]
[1740454096720,0.00127983,92531.0,92524.0,0.045]
[1740454096922,0.00818778,92525.0,92524.0,0.038]
[1740454098013,0.00127983,92531.0,92524.0,0.038]
[1740454098136,0.00127983,92531.0,92524.0,0.04]
[1740454098331,0.00127983,92531.0,92527.0,0.02]
[1740454098588,0.00922916,92531.0,92530.0,0.02]
[1740454098733,0.00127983,92531.0,92530.0,0.02]
[1740454098938,0.00127983,92531.0,92530.0,0.04151285]
[1740454099169,0.00127983,92531.0,92530.0,0.11701285]
[1740454099579,0.00127983,92531.0,92530.0,0.11865867]
[1740454100240,0.00127983,92531.0,92530.0,0.11714582]
[1740454100645,0.00127983,92531.0,92530.0,0.09714582]
[1740454100848,0.00127983,92531.0,92530.0,0.00164582]
[1740454101426,0.00127983,92531.0,92530.0,0.00664582]
[1740454101847,0.00127983,92531.0,92530.0,0.00164582]
[1740454102970,0.00127983,92531.0,92530.0,0.00664582]
[1740454103410,0.00127983,92531.0,92530.0,0.00164582]
[1740454103614,0.00127983,92531.0,92530.0,0.00364582]
[1740454104023,0.00127983,92531.0,92530.0,0.00164582]
[1740454104207,0.00127983,92531.0,92530.0,0.00364582]
[1740454104410,0.00127983,92531.0,92530.0,0.00164582]
[1740454104614,0.15,92577.0,92530.0,0.00164582]
[1740454104797,0.00012933,92571.0,92530.0,0.00364582]
[1740454104989,0.032546,92564.0,92530.0,0.00364582]
[1740454105195,0.00012933,92571.0,92534.0,0.02]
[1740454105406,0.02,92570.0,92534.0,0.02]
[1740454105607,0.02284752,92570.0,92534.0,0.02]
[1740454105942,0.00810972,92535.0,92534.0,0.02]
[1740454106151,0.00284752,92570.0,92538.0,0.0487]
[1740454106299,0.09429294,92587.0,92540.0,0.02]
[1740454106520,0.09429294,92587.0,92541.0,0.01711458]
[1740454106926,0.003,92570.0,92541.0,0.01711458]
[1740454107129,0.00312933,92570.0,92541.0,0.01711458]
[1740454107331,0.00012933,92570.0,92541.0,0.01711458]
[1740454107972,0.00012933,92570.0,92546.0,0.02]
[1740454108267,0.00012933,92570.0,92552.0,0.0787]
[1740454108474,0.00012933,92570.0,92552.0,0.0987]
[1740454108972,0.00012933,92570.0,92555.0,0.02]
[1740454109208,0.00012933,92570.0,92559.0,0.02]
[1740454109411,0.00793968,92560.0,92559.0,0.02]
[1740454109801,0.00793968,92560.0,92559.0,0.05003458]
[1740454110557,0.00793968,92560.0,92559.0,0.09653458]
[1740454110975,0.00793968,92560.0,92559.0,0.0865]
[1740454111765,0.00793968,92560.0,92559.0,0.0665]
[1740454112736,0.00793968,92560.0,92559.0,0.0675]
[1740454113114,0.00793968,92560.0,92559.0,0.001]
[1740454113431,0.01086188,92560.0,92559.0,0.001]
[1740454115898,0.01086188,92560.0,92551.0,0.02]
[1740454116098,0.00993968,92560.0,92551.0,0.02]
[1740454116304,0.00291534,92559.0,92551.0,0.02]
[1740454116511,0.00291534,92559.0,92553.0,0.02]
[1740454116716,0.00993968,92560.0,92554.0,0.02]
[1740454116912,0.00793968,92560.0,92554.0,0.02]
[1740454117317,0.00993968,92560.0,92554.0,0.02]
[1740454117514,0.00291534,92559.0,92554.0,0.02]
[1740454117722,0.00291534,92559.0,92553.0,0.02]
[1740454117928,0.00291534,92559.0,92552.0,0.02]
[1740454118069,0.00291534,92559.0,92554.0,0.02]
[1740454118604,0.00291534,92559.0,92551.0,0.02]
[1740454118786,0.00291534,92559.0,92552.0,0.02]
[1740454121595,0.00291534,92559.0,92552.0,0.04]
[1740454121797,0.00291534,92559.0,92552.0,0.02]
[1740454122032,0.00793968,92560.0,92551.0,0.02]
[1740454122179,0.00793968,92560.0,92544.0,0.0771]
[1740454122180,0.00291534,92558.0,92552.0,0.02]
[1740454122532,0.00793968,92560.0,92544.0,0.0771]
[1740454123127,0.00793968,92560.0,92552.0,0.02]
[1740454123547,0.001,92558.0,92552.0,0.02]
[1740454123748,0.00793968,92560.0,92552.0,0.02]
[1740454123962,0.00793968,92560.0,92544.0,0.0771]
[1740454124125,0.00993968,92560.0,92552.0,0.02]
[1740454124337,0.00290175,92559.0,92544.0,0.0771]
[1740454124564,0.001,92558.0,92544.0,0.0771]
[1740454125614,0.001,92558.0,92549.0,0.02]
[1740454125854,0.00793968,92560.0,92552.0,0.02]
[1740454126171,0.00993968,92560.0,92552.0,0.02]
[1740454126373,0.00793968,92560.0,92552.0,0.02]
[1740454126629,0.00290175,92559.0,92552.0,0.02]
[1740454126856,0.001,92558.0,92545.0,0.01375658]
[1740454127061,0.001,92558.0,92552.0,0.02]
[1740454127196,0.001,92558.0,92546.0,0.01713224]
[1740454127393,0.001,92558.0,92544.0,0.0771]
[1740454127752,0.00793968,92560.0,92552.0,0.02]
[1740454127939,0.00793968,92560.0,92544.0,0.0771]
[1740454128129,0.00290175,92559.0,92552.0,0.02]
[1740454128610,0.00290175,92559.0,92551.0,0.02]
[1740454128817,0.00290175,92559.0,92544.0,0.0787958]
[1740454129055,0.00793968,92560.0,92545.0,0.01592616]
[1740454129616,0.001,92558.0,92545.0,0.01592616]
[1740454129819,0.00793968,92560.0,92552.0,0.02]
[1740454130039,0.00793968,92560.0,92545.0,0.01592616]
[1740454130219,0.00993968,92560.0,92545.0,0.00892616]
[1740454130422,0.00793968,92560.0,92545.0,0.00892616]
[1740454130617,0.00793968,92560.0,92546.0,0.01681878]
[1740454130841,0.001,92558.0,92552.0,0.02]
[1740454131776,0.00290148,92557.0,92552.0,0.02]
[1740454132741,0.00793968,92560.0,92552.0,0.02]
[1740454132986,0.002,92557.0,92552.0,0.02]
[1740454133347,0.00290159,92556.0,92552.0,0.02]
[1740454133972,0.001,92557.0,92552.0,0.02]
[1740454134170,0.00290154,92555.0,92552.0,0.02]
[1740454134371,0.001,92557.0,92552.0,0.02]
[1740454134568,0.00290134,92554.0,92552.0,0.02]
[1740454134749,0.001,92557.0,92552.0,0.02]
[1740454134952,0.00290127,92553.0,92552.0,0.02]
[1740454135148,0.00793968,92560.0,92552.0,0.02]
[1740454135359,0.001,92556.0,92552.0,0.02]
[1740454135895,0.00290131,92555.0,92552.0,0.02]
[1740454136126,0.00793968,92560.0,92552.0,0.02]
[1740454136329,0.00290129,92559.0,92552.0,0.02]
[1740454136902,0.001,92556.0,92552.0,0.02]
[1740454137330,0.00290129,92555.0,92552.0,0.02]
[1740454138340,0.00793968,92560.0,92552.0,0.02]
[1740454138561,0.00490129,92559.0,92552.0,0.02]
[1740454139042,0.01012,92603.0,92552.0,0.02]
[1740454139268,0.00809261,92553.0,92552.0,0.02012933]
[1740454139516,0.00809261,92553.0,92552.0,0.09532933]
[1740454139719,0.01081257,92553.0,92552.0,0.09532933]
[1740454139922,0.00809261,92553.0,92552.0,0.09532933]
[1740454140093,0.00809261,92553.0,92552.0,0.09632933]
[1740454140451,0.00809261,92553.0,92552.0,0.10802446]
[1740454140660,0.00809261,92553.0,92552.0,0.10902446]
[1740454142067,0.00809261,92553.0,92552.0,0.09632933]
[1740454142273,0.00809261,92553.0,92552.0,0.02112933]
[1740454142488,0.00809261,92553.0,92552.0,0.00112933]
[1740454143424,0.00809261,92553.0,92552.0,0.00012933]
[1740454143860,0.00809261,92553.0,92552.0,0.001]
[1740454144189,0.01081486,92553.0,92552.0,0.001]
[1740454145220,0.01081486,92553.0,92545.0,0.0016958]
[1740454145425,0.01094397,92553.0,92552.0,0.001]
[1740454146238,0.01094397,92553.0,92545.0,0.0016958]
[1740454146389,0.01094397,92553.0,92546.0,0.01009916]
[1740454146549,0.00822172,92553.0,92545.0,0.0026958]
[1740454146866,0.00822172,92553.0,92545.0,0.0016958]
[1740454147070,0.00822172,92553.0,92552.0,0.001]
[1740454147288,0.01094397,92553.0,92552.0,0.001]
[1740454148514,0.01094397,92553.0,92545.0,0.0016958]
[1740454148717,0.00822172,92553.0,92546.0,0.001]
[1740454148938,0.00822172,92553.0,92544.0,0.001]
[1740454149142,0.00270544,92552.0,92533.0,0.1305]
[1740454149553,0.00822172,92553.0,92533.0,0.1305]
[1740454149893,0.00822172,92553.0,92546.0,0.001]
[1740454150099,0.00270544,92552.0,92533.0,0.1305]
[1740454150423,0.003,92552.0,92533.0,0.1305]
[1740454150643,0.003,92552.0,92534.0,0.01505]
[1740454150835,0.003,92552.0,92533.0,0.1305]
[1740454151456,0.005,92552.0,92533.0,0.1305]
[1740454152234,0.003,92552.0,92533.0,0.1321954]
[1740454152436,0.00822172,92553.0,92533.0,0.1321954]
[1740454152875,0.002,92552.0,92533.0,0.1321954]
[1740454153032,0.002,92552.0,92533.0,0.14757952]
[1740454153379,0.006,92552.0,92533.0,0.14757952]
[1740454153589,0.006,92552.0,92533.0,0.1321954]
[1740454154200,0.004,92552.0,92533.0,0.1321954]
[1740454155496,0.006,92552.0,92533.0,0.1321954]
[1740454156688,0.006,92552.0,92533.0,0.0016954]
[1740454157092,0.00270544,92551.0,92533.0,0.0016954]
[1740454157938,0.00270544,92551.0,92525.0,0.0753]
[1740454158258,0.0080095,92526.0,92506.0,0.02]
[1740454158656,0.0026929,92525.0,92517.0,0.02]
[1740454158839,0.0080095,92526.0,92517.0,0.02]
[1740454159383,0.0080095,92526.0,92506.0,0.02]
[1740454159591,0.0120095,92526.0,92506.0,0.02]
[1740454159985,0.01413856,92526.0,92506.0,0.02]
[1740454160405,0.01013856,92526.0,92506.0,0.02]
[1740454160603,0.001,92525.0,92506.0,0.02]
[1740454160807,0.001,92525.0,92518.0,0.02]
[1740454161083,0.01213856,92526.0,92518.0,0.02]
[1740454161444,0.01413856,92526.0,92518.0,0.02]
[1740454161638,0.01413856,92526.0,92515.0,0.1465]
[1740454161840,0.00813856,92526.0,92515.0,0.1465]
[1740454162026,0.001,92525.0,92515.0,0.1265]
[1740454162233,0.001,92525.0,92518.0,0.02]
[1740454162431,0.00913856,92526.0,92515.0,0.1265]
[1740454162432,0.00913856,92526.0,92516.0,0.02]
[1740454162788,0.01013856,92526.0,92515.0,0.1265]
[1740454163291,0.19029349,92548.0,92515.0,0.1265]
[1740454163486,0.001,92525.0,92515.0,0.12693103]
[1740454163687,0.001,92525.0,92515.0,0.14693103]
[1740454163889,0.00832829,92519.0,92515.0,0.14693103]
[1740454165706,0.00832829,92519.0,92515.0,0.14793103]
[1740454166813,0.00832829,92519.0,92515.0,0.14893103]
[1740454167184,0.00800829,92519.0,92515.0,0.14893103]
[1740454167587,0.00800829,92519.0,92515.0,0.14793103]
[1740454168137,0.00800829,92519.0,92515.0,0.14693103]
[1740454168511,0.00900829,92519.0,92515.0,0.14693103]
[1740454170450,0.00900829,92519.0,92516.0,0.0146931]
[1740454170633,0.00900829,92519.0,92515.0,0.14693103]
[1740454170828,0.05395091,92519.0,92515.0,0.14693103]
[1740454171237,0.00265259,92518.0,92515.0,0.14693103]
[1740454171815,0.00800829,92519.0,92515.0,0.14693103]
[1740454175585,0.00800829,92519.0,92515.0,0.12693103]
[1740454175814,0.00800829,92519.0,92515.0,0.14693103]
[1740454176136,0.00900829,92519.0,92515.0,0.14693103]
[1740454176341,0.00900829,92519.0,92515.0,0.14862803]
[1740454176585,0.00885679,92519.0,92515.0,0.14862803]
[1740454178603,0.00885679,92519.0,92515.0,0.04842803]
[1740454178807,0.00885679,92519.0,92505.0,0.0481]
[1740454179153,0.01028747,92519.0,92505.0,0.0481]
[1740454179424,0.01028747,92519.0,92502.0,0.3224]
[1740454179650,0.00928747,92519.0,92502.0,0.3224]
[1740454180692,0.01028747,92519.0,92502.0,0.3224]
[1740454180842,0.01128747,92519.0,92502.0,0.3224]
[1740454181206,0.01028747,92519.0,92502.0,0.3224]
[1740454181406,0.01128747,92519.0,92502.0,0.3224]
[1740454181629,0.01028747,92519.0,92502.0,0.3224]
[1740454181849,0.00928747,92519.0,92502.0,0.3224]
[1740454182053,0.01028747,92519.0,92502.0,0.3224]
[1740454182256,0.01128747,92519.0,92502.0,0.3224]
[1740454183227,0.01028747,92519.0,92502.0,0.3224]
[1740454183556,0.01028747,92519.0,92489.0,0.08582654]
[1740454183557,0.0795,92518.0,92489.0,0.08582654]
[1740454183730,0.0795,92518.0,92477.0,0.0793]
[1740454183731,0.0703,92516.0,92477.0,0.0793]
[1740454183871,0.00798995,92490.0,92476.0,0.0483]
[1740454184318,0.00262184,92489.0,92476.0,0.0483]
[1740454184743,0.00798995,92490.0,92467.0,0.0469]
[1740454185282,0.0703,92489.0,92454.0,0.0016958]
[1740454185507,0.0703,92489.0,92454.0,0.00182514]
[1740454185508,0.00926555,92488.0,92454.0,0.00182514]
[1740454185703,0.16215644,92488.0,92454.0,0.00182514]
[1740454185878,0.05522769,92487.0,92454.0,0.00182514]
[1740454186286,0.0028897,92486.0,92454.0,0.00182514]
[1740454186486,0.0446151,92485.0,92454.0,0.00182514]
[1740454186651,0.06534769,92485.0,92454.0,0.00182514]
[1740454186859,0.00825466,92455.0,92454.0,0.00182514]
[1740454187136,0.02880396,92455.0,92451.0,0.00135767]
[1740454187255,0.04128189,92454.0,92451.0,0.00135767]
[1740454187450,0.05522769,92454.0,92451.0,0.00135767]